bitfinex/quotes_BTCUSD_20241124
["timestamp","ask_amount","ask_price","bid_price","bid_amount"]
[1732451136880,0.30888048,97169.0,97168.0,0.28723552]
[1732451137342,0.30859129,97169.0,97168.0,0.28723552]
[1732451137564,0.30888048,97169.0,97168.0,0.28723552]
[1732451139761,0.30978048,97169.0,97168.0,0.28723552]
[1732451140018,0.35491048,97169.0,97168.0,0.28723552]
[1732451140700,0.35401048,97169.0,97168.0,0.28723552]
[1732451140929,0.35491048,97169.0,97168.0,0.28723552]
[1732451141604,0.35401048,97169.0,97168.0,0.28723552]
[1732451142741,0.35491048,97169.0,97168.0,0.28723552]
[1732451144075,0.45692475,97169.0,97168.0,0.28723552]
[1732451149074,0.45692475,97169.0,97168.0,0.24607052]
[1732451149596,0.45692475,97169.0,97168.0,0.28723552]
[1732451150255,0.45692475,97169.0,97168.0,0.09607052]
[1732451150485,0.64003775,97169.0,97168.0,0.09607052]
[1732451150713,0.68663775,97169.0,97168.0,0.09607052]
[1732451152499,0.68835395,97169.0,97168.0,0.09607052]
[1732451152740,0.58544095,97169.0,97168.0,0.09607052]
[1732451154819,0.53884095,97169.0,97168.0,0.13723552]
[1732451155034,0.53884095,97169.0,97168.0,0.09607052]
[1732451158194,0.64175395,97169.0,97168.0,0.09607052]
[1732451158410,0.53884095,97169.0,97168.0,0.09607052]
[1732451159085,0.64175395,97169.0,97168.0,0.09607052]
[1732451159728,0.53884095,97169.0,97168.0,0.09607052]
[1732451161823,0.45864095,97169.0,97168.0,0.63723552]
[1732451162050,0.45864095,97169.0,97168.0,0.59607052]
[1732451162733,0.56155395,97169.0,97168.0,0.59607052]
[1732451163169,0.45864095,97169.0,97168.0,0.59607052]
[1732451163853,0.56155395,97169.0,97168.0,0.59607052]
[1732451165750,0.63085395,97169.0,97168.0,0.59607052]
[1732451165968,0.60734095,97169.0,97168.0,0.59607052]
[1732451166641,0.60634095,97169.0,97168.0,0.59607052]
[1732451167548,0.60734095,97169.0,97168.0,0.59607052]
[1732451167807,0.60634095,97169.0,97168.0,0.59607052]
[1732451168042,0.90835395,97169.0,97168.0,0.59607052]
[1732451168257,0.90925395,97169.0,97168.0,0.59607052]
[1732451168480,1.11025395,97169.0,97168.0,0.59607052]
[1732451169657,1.11025395,97169.0,97168.0,0.58168266]
[1732451169883,1.11025395,97169.0,97168.0,0.59332912]
[1732451170864,1.1514477,97169.0,97168.0,0.59332912]
[1732451172046,1.1524477,97169.0,97168.0,0.59332912]
[1732451173174,1.17296651,97169.0,97168.0,0.59332912]
[1732451175250,1.17196651,97169.0,97168.0,0.59332912]
[1732451175714,1.10283651,97169.0,97168.0,0.59332912]
[1732451175953,1.14796651,97169.0,97168.0,0.59418722]
[1732451176204,1.14896651,97169.0,97168.0,0.59418722]
[1732451177424,1.17196651,97169.0,97168.0,0.59418722]
[1732451178577,1.17296651,97169.0,97168.0,0.59418722]
[1732451179538,1.17196651,97169.0,97168.0,0.59418722]
[1732451183220,1.1705647,97169.0,97168.0,0.59418722]
[1732451184394,0.9419517,97169.0,97168.0,0.59418722]
[1732451184621,1.0448647,97169.0,97168.0,0.59418722]
[1732451184878,0.8448647,97169.0,97168.0,0.59418722]
[1732451185097,0.7419517,97169.0,97168.0,0.59418722]
[1732451185322,0.9419517,97169.0,97168.0,0.59418722]
[1732451185767,1.0448647,97169.0,97168.0,0.59418722]
[1732451186070,0.8448647,97169.0,97168.0,0.59418722]
[1732451186308,1.0448647,97169.0,97168.0,0.59418722]
[1732451186796,1.0458647,97169.0,97168.0,0.59418722]
[1732451187012,1.1768647,97169.0,97168.0,0.59418722]
[1732451189759,1.1778647,97169.0,97168.0,0.59418722]
[1732451190016,1.1768647,97169.0,97168.0,0.59418722]
[1732451190253,1.1668647,97169.0,97168.0,0.59418722]
[1732451190914,1.1678647,97169.0,97168.0,0.59418722]
[1732451192290,1.1668647,97169.0,97168.0,0.59418722]
[1732451194249,1.1678647,97169.0,97168.0,0.59418722]
[1732451194460,1.1668647,97169.0,97168.0,0.59418722]
[1732451194914,0.7897347,97169.0,97168.0,0.59418722]
[1732451195136,1.0118647,97169.0,97168.0,0.59418722]
[1732451196294,1.0348647,97169.0,97168.0,0.59418722]
[1732451197426,0.8348647,97169.0,97168.0,0.59418722]
[1732451197706,1.0348647,97169.0,97168.0,0.59418722]
[1732451202137,0.8348647,97169.0,97168.0,0.59418722]
[1732451202349,1.0348647,97169.0,97168.0,0.59418722]
[1732451202560,1.0348647,97169.0,97168.0,0.67668722]
[1732451203023,0.5319517,97169.0,97168.0,0.71785222]
[1732451203244,0.5089517,97169.0,97168.0,0.67668722]
[1732451205453,0.6348647,97169.0,97168.0,0.67668722]
[1732451205666,0.8348647,97169.0,97168.0,0.67668722]
[1732451205883,0.8348647,97169.0,97168.0,0.59418722]
[1732451206581,0.8358647,97169.0,97168.0,0.59418722]
[1732451206837,0.8348647,97169.0,97168.0,0.59418722]
[1732451216032,0.5319517,97169.0,97168.0,0.59418722]
[1732451217182,0.6348647,97169.0,97168.0,0.59418722]
[1732451219472,0.8348647,97169.0,97168.0,0.59418722]
[1732451229740,0.8339647,97169.0,97168.0,0.59418722]
[1732451230216,0.8348647,97169.0,97168.0,0.59418722]
[1732451232324,0.86879653,97169.0,97168.0,0.59418722]
[1732451235969,0.86879653,97169.0,97168.0,0.59370722]
[1732451236211,0.86679653,97169.0,97168.0,0.59370722]
[1732451236429,0.86879653,97169.0,97168.0,0.59370722]
[1732451237401,0.86679653,97169.0,97168.0,0.59370722]
[1732451238287,0.8348647,97169.0,97168.0,0.59370722]
[1732451238931,0.6348647,97169.0,97168.0,0.59370722]
[1732451239152,0.6348647,97169.0,97168.0,0.66990722]
[1732451239153,0.61157551,97169.0,97168.0,0.66990722]
[1732451239401,0.57067095,97169.0,97168.0,0.66990722]
[1732451240977,0.57067095,97169.0,97168.0,0.59370722]
[1732451241636,0.57038176,97169.0,97168.0,0.59370722]
[1732451241860,0.79367095,97169.0,97168.0,0.59370722]
[1732451242069,0.79567095,97169.0,97168.0,0.59370722]
[1732451242283,0.79367095,97169.0,97168.0,0.59370722]
[1732451243491,0.79567095,97169.0,97168.0,0.59370722]
[1732451244362,0.79367095,97169.0,97168.0,0.59370722]
[1732451245270,0.79567095,97169.0,97168.0,0.59370722]
[1732451245491,0.82759584,97169.0,97168.0,0.59370722]
[1732451245737,0.79567095,97169.0,97168.0,0.59370722]
[1732451245946,0.82759594,97169.0,97168.0,0.59370722]
[1732451246641,0.91952975,97169.0,97168.0,0.59370722]
[1732451247083,0.82759594,97169.0,97168.0,0.59370722]
[1732451247998,0.9195364,97169.0,97168.0,0.59370722]
[1732451248206,0.82759594,97169.0,97168.0,0.59370722]
[1732451249082,0.9195364,97169.0,97168.0,0.59370722]
[1732451249522,0.82759594,97169.0,97168.0,0.59370722]
[1732451251089,0.9195364,97169.0,97168.0,0.59370722]
[1732451251975,0.91951595,97169.0,97168.0,0.59370722]
[1732451252189,2.32759594,97169.0,97168.0,0.59370722]
[1732451253315,2.41950031,97169.0,97168.0,0.59370722]
[1732451253996,2.32759594,97169.0,97168.0,0.59370722]
[1732451254447,2.41950031,97169.0,97168.0,0.59370722]
[1732451255844,2.32759594,97169.0,97168.0,0.59370722]
[1732451259293,0.82759594,97169.0,97168.0,0.59370722]
[1732451259728,2.32759594,97169.0,97168.0,0.59370722]
[1732451259949,2.32759594,97169.0,97168.0,0.58417506]
[1732451260168,2.32759594,97169.0,97168.0,0.57393681]
[1732451260825,2.47759594,97169.0,97168.0,0.57393681]
[1732451261516,2.47759594,97169.0,97168.0,0.56263943]
[1732451261517,2.67759594,97169.0,97168.0,0.56263943]
[1732451261702,2.80509594,97169.0,97168.0,0.46943604]
[1732451262377,3.14398905,97169.0,97168.0,0.46943604]
[1732451262598,3.32764021,97169.0,97168.0,0.46943604]
[1732451263298,3.14398905,97169.0,97168.0,0.46943604]
[1732451265245,2.8414277,97169.0,97168.0,0.46943604]
[1732451265501,3.21379435,97169.0,97168.0,0.46943604]
[1732451265925,3.21377837,97169.0,97168.0,0.46943604]
[1732451267026,3.14373577,97169.0,97168.0,0.46943604]
[1732451267231,2.99373577,97169.0,97168.0,0.46943604]
[1732451267661,3.14373577,97169.0,97168.0,0.46943604]
[1732451268164,3.21377837,97169.0,97168.0,0.46943604]
[1732451268378,2.87513854,97169.0,97168.0,0.46943604]
[1732451269766,2.87513854,97169.0,97168.0,0.40768704]
[1732451269767,3.11465595,97169.0,97168.0,0.40768704]
[1732451269997,3.11465595,97169.0,97168.0,0.36652104]
[1732451269998,2.97713854,97169.0,97168.0,0.36652104]
[1732451270233,3.31555408,97169.0,97168.0,0.36652104]
[1732451270466,3.31555408,97169.0,97168.0,0.27183254]
[1732451270729,3.31555408,97169.0,97168.0,0.25124954]
[1732451270968,3.59056322,97169.0,97168.0,0.25124954]
[1732451271632,3.77403792,97169.0,97168.0,0.25124954]
[1732451271853,3.77403792,97169.0,97168.0,0.09798531]
[1732451271854,3.59056322,97169.0,97168.0,0.09798531]
[1732451272108,3.77387377,97169.0,97168.0,0.09798531]
[1732451272321,3.59056322,97169.0,97168.0,0.09798531]
[1732451272531,3.48856322,97169.0,97168.0,0.05681931]
[1732451272752,3.72070742,97169.0,97168.0,0.09955279]
[1732451272973,0.85193519,97166.0,97165.0,0.0008579]
[1732451273186,3.63786378,97166.0,97165.0,0.0008579]
[1732451273405,3.67457583,97166.0,97165.0,0.1007365]
[1732451273832,3.67457583,97166.0,97165.0,0.0792946]
[1732451274094,3.85768457,97166.0,97165.0,0.0792946]
[1732451275238,3.90656167,97166.0,97165.0,0.0792946]
[1732451275677,5.40656167,97166.0,97165.0,0.0792946]
[1732451276769,5.17441747,97166.0,97165.0,0.0792946]
[1732451276995,5.11116943,97166.0,97165.0,0.0792946]
[1732451277433,5.24857042,97166.0,97165.0,0.0792946]
[1732451277643,5.24856965,97166.0,97165.0,0.0792946]
[1732451277859,5.21461583,97166.0,97165.0,0.0792946]
[1732451278071,4.94951561,97166.0,97165.0,0.0792946]
[1732451278283,5.23654944,97166.0,97165.0,0.0792946]
[1732451278799,5.23654944,97166.0,97165.0,0.0801527]
[1732451279012,5.14494776,97166.0,97165.0,0.0801527]
[1732451279935,4.86993862,97166.0,97165.0,0.0801527]
[1732451281296,4.90389244,97166.0,97165.0,0.0801527]
[1732451281748,4.94060449,97166.0,97165.0,0.0801527]
[1732451282218,5.07800471,97166.0,97165.0,0.0801527]
[1732451282903,5.35301385,97166.0,97165.0,0.0801527]
[1732451283131,5.10602455,97166.0,97165.0,0.09811253]
[1732451283371,5.22286965,97166.0,97165.0,0.09482528]
[1732451283623,5.27276965,97166.0,97165.0,0.04660409]
[1732451283872,5.35606965,97166.0,97165.0,0.09725443]
[1732451284101,5.73996601,97166.0,97165.0,0.09725443]
[1732451284327,5.55669891,97166.0,97165.0,0.09725443]
[1732451284541,5.55669891,97166.0,97165.0,0.08479451]
[1732451284758,5.78578313,97166.0,97165.0,0.0704215]
[1732451284995,5.55669891,97166.0,97165.0,0.0704215]
[1732451285214,5.55669891,97166.0,97165.0,0.09319584]
[1732451285654,5.78553671,97166.0,97165.0,0.09319584]
[1732451285882,7.28553671,97166.0,97165.0,0.08331002]
[1732451286095,7.38940476,97166.0,97165.0,0.06706903]
[1732451286314,7.05664393,97166.0,97165.0,0.07261184]
[1732451286528,7.16464393,97166.0,97165.0,0.05202784]
[1732451286766,7.16464393,97166.0,97165.0,0.07766098]
[1732451286985,7.13069011,97166.0,97165.0,0.07766098]
[1732451287464,7.02269011,97166.0,97165.0,0.07349076]
[1732451287696,7.02269011,97166.0,97165.0,0.09407476]
[1732451287907,7.05664393,97166.0,97165.0,0.09407476]
[1732451288331,7.05664393,97166.0,97165.0,0.07349076]
[1732451290119,7.05652732,97166.0,97165.0,0.07349076]
[1732451290343,7.05652732,97166.0,97165.0,0.09810235]
[1732451290599,7.27011157,97166.0,97165.0,0.09724425]
[1732451290815,7.16624352,97166.0,97165.0,0.09724425]
[1732451291267,0.44831919,97162.0,97161.0,0.0008581]
[1732451291494,2.02537964,97162.0,97161.0,0.03309656]
[1732451291740,0.85745019,97152.0,97146.0,0.0009972]
[1732451291963,3.06358807,97152.0,97151.0,0.09656326]
[1732451292386,3.07430145,97152.0,97151.0,0.09656326]
[1732451294217,3.14496732,97152.0,97151.0,0.09656326]
[1732451295085,3.1110135,97152.0,97151.0,0.09656326]
[1732451295537,3.14496732,97152.0,97151.0,0.09656326]
[1732451295759,3.14496732,97152.0,97151.0,0.05690106]
[1732451295973,3.14496732,97152.0,97151.0,0.09892277]
[1732451296660,3.18755416,97152.0,97151.0,0.09892277]
[1732451296884,3.32480057,97152.0,97151.0,0.09892277]
[1732451297097,3.18755416,97152.0,97151.0,0.09892277]
[1732451297341,3.32480057,97152.0,97151.0,0.09892277]
[1732451298449,3.29084675,97152.0,97151.0,0.09892277]
[1732451298669,3.32480057,97152.0,97151.0,0.0880504]
[1732451299807,3.19290904,97152.0,97151.0,0.0880504]
[1732451300233,3.53068435,97152.0,97151.0,0.0880504]
[1732451301419,3.71367957,97152.0,97151.0,0.0880504]
[1732451301599,3.67972575,97152.0,97151.0,0.0788799]
[1732451301832,3.53068435,97152.0,97151.0,0.0788799]
[1732451302044,3.53068435,97152.0,97151.0,0.079738]
[1732451302718,3.55127522,97152.0,97151.0,0.079738]
[1732451302933,3.55127522,97152.0,97151.0,0.07672414]
[1732451303402,3.55127522,97152.0,97151.0,0.06494161]
[1732451303641,3.55127522,97152.0,97151.0,0.09602632]
[1732451303876,3.55127522,97152.0,97151.0,0.07642834]
[1732451304545,3.55127522,97152.0,97151.0,0.0908782]
[1732451304546,3.53068435,97152.0,97151.0,0.0908782]
[1732451304984,5.03068435,97152.0,97151.0,0.0908782]
[1732451305204,5.03068435,97152.0,97151.0,0.03894534]
[1732451305415,5.1345524,97152.0,97151.0,0.09332206]
[1732451305871,5.1345524,97152.0,97151.0,0.06949833]
[1732451306077,5.03068435,97152.0,97151.0,0.06949833]
[1732451306305,0.70125119,97151.0,97150.0,0.58380343]
[1732451306528,0.70125119,97151.0,97139.0,9e-05]
[1732451306529,0.72425819,97144.0,97139.0,9e-05]
[1732451306769,0.70126019,97143.0,97139.0,9e-05]
[1732451307212,3.34290357,97143.0,97139.0,9e-05]
[1732451307217,3.34290357,97143.0,97142.0,0.09503826]
[1732451307426,3.52612148,97143.0,97142.0,0.0017162]
[1732451307638,3.34304082,97143.0,97142.0,0.0017162]
[1732451308089,3.34304082,97143.0,97142.0,0.10119813]
[1732451308306,3.4033603,97143.0,97142.0,0.10119813]
[1732451308987,3.30502268,97143.0,97142.0,0.10119813]
[1732451309719,3.30502268,97143.0,97142.0,0.03476549]
[1732451309720,3.34290936,97143.0,97142.0,0.03476549]
[1732451309949,4.8277448,97143.0,97142.0,0.07507874]
[1732451310186,4.93161285,97143.0,97142.0,0.07507874]
[1732451310404,4.93161285,97143.0,97142.0,0.09653449]
[1732451310637,0.44831919,97141.0,97139.0,9e-05]
[1732451310895,1.75017203,97141.0,97140.0,0.11805669]
[1732451311117,1.78688408,97141.0,97140.0,0.09535878]
[1732451311331,3.2975997,97141.0,97140.0,0.09488131]
[1732451311575,3.2975997,97141.0,97140.0,0.09178035]
[1732451311788,3.52628235,97141.0,97140.0,0.09178035]
[1732451311998,5.02628235,97141.0,97140.0,0.09178035]
[1732451312236,4.90142056,97141.0,97140.0,0.08322646]
[1732451312450,4.90142056,97141.0,97140.0,0.09488131]
[1732451312671,4.78055251,97141.0,97140.0,0.09488131]
[1732451312902,4.78055251,97141.0,97140.0,0.04328262]
[1732451313123,5.09641345,97141.0,97140.0,0.07429231]
[1732451313334,5.09641345,97141.0,97140.0,0.07886132]
[1732451313614,5.32515463,97141.0,97140.0,0.09945032]
[1732451313843,5.09641345,97141.0,97140.0,0.09945032]
[1732451315007,5.09641345,97141.0,97140.0,0.08881416]
[1732451315246,5.09641345,97141.0,97140.0,0.00610259]
[1732451315476,5.09641345,97141.0,97121.0,0.0009827]
[1732451315477,0.55727219,97131.0,97130.0,0.24664869]
[1732451315712,1.41341007,97131.0,97130.0,0.3406909]
[1732451316178,3.00782576,97131.0,97130.0,0.3406909]
[1732451316394,3.14507794,97131.0,97130.0,0.3406909]
[1732451316603,3.00782576,97131.0,97130.0,0.3406909]
[1732451316817,2.95012212,97131.0,97130.0,0.33221414]
[1732451317037,4.45012212,97131.0,97130.0,0.33221414]
[1732451317255,4.5873743,97131.0,97130.0,0.33221414]
[1732451317472,4.45012212,97131.0,97130.0,0.33221414]
[1732451318387,4.49218097,97131.0,97130.0,0.33221414]
[1732451318851,4.49218097,97131.0,97130.0,0.32815635]
[1732451319483,4.49218097,97131.0,97130.0,0.32513313]
[1732451319984,4.49753718,97131.0,97130.0,0.32513313]
[1732451321385,4.46082513,97131.0,97130.0,0.44903313]
[1732451321630,4.45992513,97131.0,97130.0,0.44903313]
[1732451321848,4.55232249,97131.0,97130.0,0.44903313]
[1732451322058,2.77731335,97131.0,97130.0,0.32513313]
[1732451322283,2.68581599,97131.0,97130.0,0.32513313]
[1732451323163,2.68491599,97131.0,97130.0,0.32513313]
[1732451323399,2.68581599,97131.0,97130.0,0.32513313]
[1732451324054,2.68581599,97131.0,97130.0,0.3200637]
[1732451324291,2.68581599,97131.0,97130.0,0.31308009]
[1732451324921,2.68581599,97131.0,97130.0,0.30795725]
[1732451325396,2.70657995,97131.0,97130.0,0.30795725]
[1732451325614,2.84296772,97131.0,97130.0,0.30881555]
[1732451325829,2.70567995,97131.0,97130.0,0.43331555]
[1732451326841,2.51610641,97131.0,97130.0,0.43331555]
[1732451327065,2.4877502,97131.0,97130.0,0.43331555]
[1732451328426,2.48803939,97131.0,97130.0,0.43331555]
[1732451329557,0.98803939,97131.0,97130.0,0.43331555]
[1732451329985,2.48803939,97131.0,97130.0,0.43331555]
[1732451332638,2.4877502,97131.0,97130.0,0.43331555]
[1732451332891,2.48803939,97131.0,97130.0,0.43331555]
[1732451337119,2.57967508,97131.0,97130.0,0.43331555]
[1732451337353,2.48803939,97131.0,97130.0,0.43331555]
[1732451337556,2.57967508,97131.0,97130.0,0.43331555]
[1732451337799,2.48803939,97131.0,97130.0,0.43331555]
[1732451338022,2.48975619,97131.0,97130.0,0.43331555]
[1732451338247,2.58143508,97131.0,97130.0,0.43331555]
[1732451339534,2.60443508,97131.0,97130.0,0.43331555]
[1732451339743,2.51275619,97131.0,97130.0,0.43331555]
[1732451339993,2.51275619,97131.0,97130.0,0.43290974]
[1732451340211,2.85123091,97131.0,97130.0,0.43290974]
[1732451340433,2.85123091,97131.0,97130.0,0.38370974]
[1732451340686,2.85213091,97131.0,97130.0,0.30840974]
[1732451340925,2.85123091,97131.0,97130.0,0.30840974]
[1732451341134,2.85213091,97131.0,97130.0,0.30840974]
[1732451341376,2.85124204,97131.0,97130.0,0.30840974]
[1732451341844,2.85214204,97131.0,97130.0,0.30840974]
[1732451342321,2.85214204,97131.0,97130.0,0.21985031]
[1732451342534,3.05214204,97131.0,97130.0,0.21985031]
[1732451342757,3.05214204,97131.0,97130.0,0.15545312]
[1732451342962,3.05214204,97131.0,97130.0,0.13124405]
[1732451343193,3.05214204,97131.0,97130.0,0.12678096]
[1732451343622,3.05214204,97131.0,97130.0,0.06300081]
[1732451343835,0.70727319,97130.0,97129.0,0.0982625]
[1732451344066,0.70727419,97129.0,97124.0,0.0008582]
[1732451344307,1.47688878,97129.0,97128.0,0.01878181]
[1732451344526,1.47688878,97129.0,97124.0,0.0008582]
[1732451344527,0.58131919,97125.0,97124.0,0.0008582]
[1732451344749,1.47689378,97125.0,97124.0,0.0991207]
[1732451344972,1.47689378,97125.0,97124.0,0.10048001]
[1732451345184,2.97689378,97125.0,97124.0,0.10048001]
[1732451345415,3.25190292,97125.0,97124.0,0.08333001]
[1732451345640,3.25190292,97125.0,97124.0,0.09962181]
[1732451345914,0.43131919,97121.0,97118.0,0.00107622]
[1732451346138,1.1797083,97121.0,97118.0,0.00107622]
[1732451346359,1.1797083,97121.0,97119.0,0.09962181]
[1732451346360,1.47599778,97121.0,97119.0,0.09962181]
[1732451346581,2.98761452,97121.0,97119.0,0.09962181]
[1732451346839,2.98761452,97121.0,97103.0,0.0463]
[1732451346840,0.48339219,97112.0,97075.0,0.00077347]
[1732451347085,0.254141,97116.0,97075.0,0.00077347]
[1732451347086,0.78691819,97088.0,97075.0,0.00077347]
[1732451347315,0.50733919,97068.0,97067.0,0.00504451]
[1732451347538,2.34072302,97068.0,97067.0,0.10214766]
[1732451347762,2.40723269,97068.0,97067.0,0.10214766]
[1732451347983,2.40723269,97068.0,97067.0,0.08714766]
[1732451348209,2.51014696,97068.0,97067.0,0.08714766]
[1732451348502,0.23041919,97035.0,97034.0,0.00014513]
[1732451348735,0.75566367,97035.0,97034.0,0.09724828]
[1732451348964,0.75566367,97035.0,97034.0,0.09224828]
[1732451349642,0.90566367,97035.0,97034.0,0.09224828]
[1732451349907,0.90566367,97035.0,97011.0,0.67330461]
[1732451349908,0.333208,97013.0,97012.0,0.0965072]
[1732451350123,0.333208,97013.0,97011.0,0.67330461]
[1732451350124,0.33321,97012.0,97011.0,0.67330461]
[1732451350347,0.33321,97012.0,97011.0,0.76882641]
[1732451350348,0.63039948,97012.0,97011.0,0.76882641]
[1732451350807,0.65339948,97012.0,97011.0,0.76882641]
[1732451351505,1.24544015,97012.0,97011.0,0.76882641]
[1732451351739,1.26346899,97012.0,97011.0,0.76882641]
[1732451351966,0.88270294,97012.0,97011.0,0.76382641]
[1732451352211,0.81707681,97012.0,97011.0,0.76382641]
[1732451352690,0.85157298,97012.0,97011.0,0.76629859]
[1732451352907,0.81707681,97012.0,97011.0,0.76629859]
[1732451353362,2.31678762,97012.0,97011.0,0.76629859]
[1732451353615,2.31707681,97012.0,97011.0,0.76629859]
[1732451354251,0.81707681,97012.0,97011.0,0.76629859]
[1732451354459,0.81707681,97012.0,97011.0,0.76382641]
[1732451354934,0.81678762,97012.0,97011.0,0.76382641]
[1732451355157,0.85157298,97012.0,97011.0,0.76382641]
[1732451355875,0.71370762,97012.0,97011.0,0.76382641]
[1732451356101,0.73270294,97012.0,97011.0,0.84071605]
[1732451356315,0.73270294,97012.0,97011.0,0.76382641]
[1732451357218,0.76771574,97012.0,97011.0,0.76382641]
[1732451357695,0.87654096,97012.0,97011.0,0.76382641]
[1732451357914,1.02654096,97012.0,97011.0,0.76382641]
[1732451358377,1.02654096,97012.0,97011.0,0.76019213]
[1732451358604,1.02654096,97012.0,97011.0,0.2418213]
[1732451358835,0.98963449,97012.0,97011.0,0.2418213]
[1732451359294,0.95462169,97012.0,97011.0,0.2418213]
[1732451359789,0.99610073,97012.0,97011.0,0.2418213]
[1732451360029,1.02719686,97012.0,97011.0,0.2418213]
[1732451360747,0.95462169,97012.0,97011.0,0.2426797]
[1732451360979,0.9543325,97012.0,97011.0,0.2426797]
[1732451361212,0.95462169,97012.0,97011.0,0.2426797]
[1732451363273,0.333214,97008.0,97007.0,7e-05]
[1732451363494,0.88241775,97008.0,97007.0,7e-05]
[1732451363721,0.88270694,97008.0,97007.0,0.09420401]
[1732451364182,0.23041919,97006.0,97005.0,0.005]
[1732451364408,0.73270894,97006.0,97005.0,0.09913401]
[1732451364631,0.73270894,97006.0,97005.0,0.08913401]
[1732451364857,0.73270894,97006.0,97005.0,0.08413401]
[1732451365548,0.33350819,97003.0,97002.0,0.09419178]
[1732451365792,0.33350819,97003.0,97001.0,0.02]
[1732451365793,0.33350919,97002.0,97001.0,0.02]
[1732451366018,0.73271294,97002.0,97001.0,0.11419178]
[1732451366508,0.73242375,97002.0,97001.0,0.11419178]
[1732451367676,0.42962294,97002.0,97001.0,0.11419178]
[1732451367937,0.13214427,97002.0,97001.0,0.26429178]
[1732451368201,0.00102801,97019.0,97008.0,0.06185]
[1732451368427,0.00102801,97019.0,97016.0,0.062945]
[1732451368679,0.2,97037.0,97025.0,0.061839]
[1732451368895,0.00028919,97039.0,97026.0,0.0241]
[1732451369136,0.102,97060.0,97039.0,0.06183]
[1732451369137,0.2,97052.0,97039.0,0.06183]
[1732451369355,0.206064,97057.0,97040.0,0.0462]
[1732451369356,0.2,97053.0,97040.0,0.0462]
[1732451369598,0.20028919,97053.0,97042.0,0.0011]
[1732451369816,0.30914,97043.0,97040.0,0.0462]
[1732451370032,0.00028919,97058.0,97041.0,0.0108031]
[1732451370033,0.2,97057.0,97041.0,0.0108031]
[1732451370247,0.2,97057.0,97046.0,0.061826]
[1732451370248,0.00028919,97053.0,97046.0,0.061826]
[1732451370474,0.2,97059.0,97052.0,0.061822]
[1732451370691,0.00028919,97055.0,97043.0,0.061828]
[1732451370940,0.00102801,97054.0,97044.0,0.061827]
[1732451371156,0.00102801,97054.0,97043.0,0.0109132]
[1732451371157,0.11012801,97054.0,97043.0,0.0109132]
[1732451371377,0.10304,97050.0,97040.0,0.0462]
[1732451371856,0.103031,97058.0,97041.0,0.072134]
[1732451372088,0.2,97061.0,97042.0,0.0118334]
[1732451372332,0.103035,97054.0,97040.0,0.1183675]
[1732451372547,0.103035,97061.0,97043.0,0.072132]
[1732451372764,0.30913,97053.0,97042.0,0.072133]
[1732451373013,0.10913,97053.0,97045.0,0.072131]
[1732451373438,0.103035,97061.0,97044.0,0.072131]
[1732451373439,0.103033,97056.0,97044.0,0.072131]
[1732451373652,0.10201427,97055.0,97054.0,0.072124]
[1732451373880,0.41113427,97055.0,97054.0,0.072124]
[1732451374119,0.41113427,97055.0,97054.0,0.153024]
[1732451374120,0.31314854,97055.0,97054.0,0.153024]
[1732451374355,0.31314854,97055.0,97054.0,0.2082354]
[1732451374604,0.103035,97090.0,97057.0,0.072122]
[1732451374825,0.103035,97093.0,97074.0,0.072109]
[1732451375082,0.103035,97103.0,97083.0,0.072102]
[1732451375294,0.103035,97105.0,97073.0,0.096965]
[1732451375532,0.04092158,97107.0,97091.0,0.072097]
[1732451375533,0.30901,97092.0,97091.0,0.072097]
[1732451375750,0.205936,97118.0,97091.0,0.072097]
[1732451375751,1.603035,97126.0,97108.0,0.0011]
[1732451376011,0.0777,97143.0,97086.0,0.0798]
[1732451376012,0.00102984,97125.0,97095.0,0.2]
[1732451376231,1.5,97137.0,97107.0,0.2]
[1732451376472,1.5,97137.0,97112.0,0.19553436]
[1732451376712,0.30893,97124.0,97123.0,0.072073]
[1732451376951,1.5,97137.0,97124.0,0.21853436]
[1732451377167,0.001719,97151.0,97123.0,0.126]
[1732451377401,0.02095508,97154.0,97124.0,0.0126]
[1732451377402,0.205867,97150.0,97124.0,0.0126]
[1732451377618,0.30886,97140.0,97124.0,0.0126]
[1732451377857,0.10201427,97131.0,97124.0,0.0126]
[1732451378069,0.10201427,97130.0,97123.0,0.0009986]
[1732451378327,0.10201427,97130.0,97110.0,0.26761636]
[1732451378328,0.41087427,97130.0,97116.0,0.09491513]
[1732451378549,0.41087427,97130.0,97129.0,0.072069]
[1732451378793,0.41074535,97130.0,97129.0,0.072069]
[1732451379032,0.307848,97159.0,97129.0,0.072069]
[1732451379033,0.102,97159.0,97134.0,0.19553436]
[1732451379251,0.03253002,97144.0,97135.0,0.03215344]
[1732451379478,0.10201427,97143.0,97123.0,0.19553436]
[1732451379703,0.41082427,97143.0,97124.0,0.02775344]
[1732451379921,0.205884,97142.0,97124.0,0.02775344]
[1732451380138,0.41082427,97141.0,97124.0,0.0009923]
[1732451380348,0.102947,97138.0,97124.0,0.0009923]
[1732451380606,0.41082427,97141.0,97125.0,0.09893117]
[1732451380607,0.10201427,97137.0,97125.0,0.09893117]
[1732451380848,0.205866,97151.0,97125.0,0.09893117]
[1732451380849,0.1301442,97168.0,97137.0,0.19553436]
[1732451381073,0.10201427,97158.0,97143.0,0.19553436]
[1732451381316,0.41082427,97158.0,97144.0,0.01955344]
[1732451381735,0.41082427,97158.0,97145.0,0.072057]
[1732451381975,0.41082427,97158.0,97153.0,0.072051]
[1732451382194,0.41082427,97158.0,97154.0,0.0072051]
[1732451382654,0.0017174,97180.0,97167.0,0.19553436]
[1732451382899,0.10201427,97177.0,97168.0,0.01955344]
[1732451383143,0.10201427,97177.0,97155.0,0.126]
[1732451383144,0.30873,97176.0,97173.0,0.072036]
[1732451383388,0.10873,97176.0,97174.0,0.02665679]
[1732451383646,0.10873,97176.0,97175.0,0.26756836]
[1732451383877,0.02416473,97198.0,97175.0,0.29355663]
[1732451384096,0.01147547,97197.0,97176.0,0.03655936]
[1732451384319,0.22304147,97197.0,97179.0,0.19553436]
[1732451384580,0.22304147,97197.0,97149.0,0.072053]
[1732451384581,0.22304147,97197.0,97187.0,0.19553436]
[1732451384835,0.22304147,97197.0,97194.0,0.07202]
[1732451384836,0.02304147,97197.0,97194.0,0.07202]
[1732451385043,0.02304147,97197.0,97192.0,0.19553436]
[1732451385261,0.02304147,97197.0,97192.0,0.26755636]
[1732451385491,0.02304147,97197.0,97174.0,0.072035]
[1732451385492,0.001719,97222.0,97207.0,0.19553436]
[1732451385719,0.2,97254.0,97194.0,0.35]
[1732451385720,0.063,97236.0,97221.0,0.2]
[1732451385949,0.063,97236.0,97226.0,0.2]
[1732451386169,0.205644,97255.0,97226.0,0.2]
[1732451386384,1.502,97257.0,97226.0,0.2]
[1732451386631,0.102833,97245.0,97230.0,0.071993]
[1732451386849,1.3,97257.0,97231.0,0.2]
[1732451387112,0.102845,97233.0,97232.0,0.0271996]
[1732451387334,0.102845,97233.0,97232.0,0.10967097]
[1732451387546,0.102845,97233.0,97232.0,0.09713893]